bitfinex/quotes_ETHUSD_20250604
["timestamp","ask_amount","ask_price","bid_price","bid_amount"]
[1749030209379,0.982,2634.7,2634.6,11.458177]
[1749030209982,1.19,2634.7,2634.6,11.458177]
[1749030215494,1.19,2634.7,2634.6,3.458177]
[1749030215721,1.19,2634.7,2634.4,2.79080262]
[1749030216193,0.982,2634.7,2634.6,12.79080262]
[1749030216368,1.19,2634.7,2634.6,12.79080262]
[1749030217676,1.19,2634.7,2634.6,20.79080262]
[1749030223110,1.19,2634.7,2634.6,15.46353743]
[1749030223698,1.19,2634.7,2634.6,13.89151]
[1749030225285,0.982,2634.7,2634.6,16.68231262]
[1749030225515,1.19,2634.7,2634.6,16.68231262]
[1749030233124,1.19,2634.7,2634.6,13.89151]
[1749030233331,2.6266,2634.7,2634.6,3.69803]
[1749030233534,2.6266,2634.7,2634.6,4.482968]
[1749030236238,0.982,2634.7,2634.6,12.482968]
[1749030236438,1.19,2634.7,2634.6,12.482968]
[1749030237115,1.19,2634.7,2634.6,12.476068]
[1749030237314,1.19,2634.7,2634.3,3.9997822]
[1749030237493,1.19,2634.7,2634.4,10.0]
[1749030238195,0.208,2634.6,2634.5,12.79080262]
[1749030238605,0.982,2634.7,2634.5,12.79080262]
[1749030238904,0.208,2634.6,2634.5,12.79080262]
[1749030239315,0.208,2634.6,2634.5,20.79080262]
[1749030239519,0.982,2634.7,2634.6,18.0]
[1749030239827,1.19,2634.7,2634.6,18.0]
[1749030240026,0.57418655,2634.7,2634.6,18.0]
[1749030240798,0.57418655,2634.7,2634.6,19.20897958]
[1749030242754,0.57418655,2634.7,2634.6,18.0]
[1749030243034,0.2314692,2634.7,2634.6,18.0]
[1749030244636,0.2314692,2634.7,2634.6,18.47456481]
[1749030244837,0.208,2634.8,2634.7,18.0]
[1749030245036,0.208,2634.8,2634.7,20.79080262]
[1749030245735,0.02,2634.9,2634.8,8.0]
[1749030245935,0.228,2634.9,2634.8,18.0]
[1749030247005,0.208,2635.2,2635.0,8.0]
[1749030247308,0.208,2635.2,2635.1,20.79080262]
[1749030249463,0.208,2635.2,2635.1,19.20656258]
[1749030249677,0.208,2635.2,2635.1,20.79080262]
[1749030252817,1.5063,2635.8,2635.3,10.0]
[1749030253056,0.208,2635.7,2635.6,8.0]
[1749030253248,0.208,2635.7,2635.6,18.0]
[1749030254859,1.5063,2635.8,2635.6,18.0]
[1749030255064,1.5063,2635.8,2635.7,18.0]
[1749030255272,1.7143,2635.8,2635.7,18.0]
[1749030255473,0.208,2635.8,2635.7,20.79080262]
[1749030256322,0.208,2635.8,2635.7,12.1726292]
[1749030257544,0.208,2635.8,2635.7,2.920562]
[1749030257870,1.6751,2635.8,2635.6,8.0]
[1749030258071,1.6751,2635.8,2635.7,3.722296]
[1749030258283,1.6751,2635.8,2635.0,10.0]
[1749030258452,1.6751,2635.8,2635.2,8.0]
[1749030258655,1.6751,2635.8,2635.3,10.0]
[1749030258847,0.02,2635.9,2635.3,10.0]
[1749030259041,1.6975,2635.8,2635.3,10.0]
[1749030259432,1.6975,2635.8,2635.3,2.22838]
[1749030259633,1.6975,2635.8,2635.3,20.0]
[1749030259634,0.208,2635.7,2635.3,20.0]
[1749030259836,0.208,2635.7,2635.3,10.0]
[1749030260729,1.4895,2635.6,2635.3,10.0]
[1749030261032,1.4895,2635.6,2635.2,2.79080262]
[1749030261232,1.4895,2635.6,2635.2,0.62896302]
[1749030261655,1.4895,2635.6,2635.3,6.431284]
[1749030261872,1.4895,2635.6,2635.2,0.62896302]
[1749030262280,1.4895,2635.6,2635.3,8.362057]
[1749030263093,1.4895,2635.6,2635.3,6.621324]
[1749030263300,1.4895,2635.6,2635.3,6.057067]
[1749030266066,1.4895,2635.6,2635.4,2.79080262]
[1749030266364,1.4895,2635.6,2635.5,7.079061]
[1749030266575,1.4895,2635.6,2635.5,15.079061]
[1749030266886,1.6975,2635.6,2635.5,15.079061]
[1749030271171,0.208,2635.6,2635.5,15.079061]
[1749030271391,1.3972,2635.8,2635.6,8.0]
[1749030271550,0.208,2635.7,2635.5,8.0]
[1749030272358,0.208,2635.7,2635.6,10.0]
[1749030274494,0.208,2635.7,2635.6,18.0]
[1749030276091,0.208,2635.7,2635.6,20.79080262]
[1749030277180,1.7065,2635.7,2635.3,1.20656258]
[1749030277402,1.7065,2635.7,2635.2,8.0]
[1749030277560,1.7065,2635.7,2635.5,8.0]
[1749030278082,1.7065,2635.7,2635.4,8.0]
[1749030278281,1.7065,2635.7,2635.5,10.0]
[1749030278859,1.7065,2635.7,2635.4,8.0]
[1749030279307,1.7065,2635.7,2635.5,10.0]
[1749030279798,1.7065,2635.7,2635.1,6.634895]
[1749030279989,1.7065,2635.7,2635.2,8.0]
[1749030280613,1.7065,2635.7,2635.3,12.472491]
[1749030280820,0.208,2635.6,2635.4,10.0]
[1749030281005,0.208,2635.6,2635.4,4.790641]
[1749030281400,0.208,2635.6,2635.4,2.572491]
[1749030282422,0.208,2635.6,2635.4,2.221941]
[1749030283607,0.208,2635.6,2635.5,20.79080262]
[1749030283821,1.5679,2635.9,2635.5,20.79080262]
[1749030284124,0.208,2635.8,2635.7,10.0]
[1749030284279,0.208,2635.8,2635.6,8.10177]
[1749030285984,0.208,2635.8,2635.7,12.79080262]
[1749030286581,1.5679,2635.9,2635.8,10.0]
[1749030286926,1.7759,2635.9,2635.8,10.0]
[1749030287126,0.228,2635.9,2635.8,10.0]
[1749030287498,0.228,2635.9,2635.6,2.872493]
[1749030287704,1.5565,2635.8,2635.7,10.0]
[1749030288010,1.5565,2635.8,2635.7,4.938]
[1749030288823,0.208,2635.8,2635.7,4.938]
[1749030292427,0.208,2635.8,2635.7,4.306891]
[1749030293010,0.208,2635.8,2635.7,10.0]
[1749030293218,0.208,2635.8,2635.7,3.335491]
[1749030296638,0.208,2635.8,2635.7,14.26869362]
[1749030298498,0.208,2635.8,2635.7,14.12629362]
[1749030299377,0.208,2635.8,2635.7,2.79080262]
[1749030299704,0.208,2635.8,2635.7,12.79080262]
[1749030301457,0.208,2635.8,2635.7,20.79080262]
[1749030301751,0.02,2635.9,2635.8,8.0]
[1749030301955,0.228,2635.9,2635.8,18.0]
[1749030302551,0.228,2635.9,2635.8,18.44118559]
[1749030302750,0.03739462,2635.9,2635.8,18.44118559]
[1749030302921,0.03739462,2635.9,2635.8,18.0]
[1749030306154,1.5433,2636.7,2636.1,10.0]
[1749030306457,1.5869,2637.2,2636.7,18.0]
[1749030306777,1.19,2636.8,2636.7,18.0]
[1749030307135,0.982,2636.8,2636.7,18.0]
[1749030307340,1.19,2636.8,2636.7,18.0]
[1749030308145,1.19,2636.8,2636.7,14.198686]
[1749030308656,1.19,2636.8,2636.7,12.0449]
[1749030309495,1.19,2636.8,2636.7,11.212]
[1749030309642,2.7589,2636.8,2636.1,2.79080262]
[1749030309841,2.7589,2636.8,2636.2,10.0]
[1749030310154,2.7589,2636.8,2636.5,10.0]
[1749030310340,3.03679,2636.8,2636.4,10.0]
[1749030310844,3.03679,2636.8,2636.5,8.0]
[1749030311150,3.03679,2636.8,2636.4,18.0]
[1749030311357,3.03679,2636.8,2636.5,10.0]
[1749030311555,3.03679,2636.8,2636.6,10.0]
[1749030312474,0.208,2636.7,2636.6,10.0]
[1749030313473,0.208,2636.7,2636.6,7.105186]
[1749030314378,0.208,2636.7,2636.5,2.79080262]
[1749030314568,0.208,2636.7,2636.6,10.0]
[1749030315186,0.982,2636.8,2636.6,10.0]
[1749030315370,0.208,2636.7,2636.6,10.0]
[1749030315683,0.208,2636.7,2636.6,12.79080262]
[1749030315884,0.208,2636.7,2636.6,10.0]
[1749030316061,0.208,2636.7,2636.4,10.0]
[1749030316249,0.10749316,2636.7,2636.4,10.0]
[1749030316589,0.10749316,2636.7,2636.6,18.0]
[1749030318380,0.10749316,2636.7,2636.6,15.975738]
[1749030318596,0.10749316,2636.7,2636.6,8.0]
[1749030318748,1.65369316,2636.7,2636.6,13.403475]
[1749030318948,1.91926248,2636.7,2636.6,12.966671]
[1749030319154,1.91926248,2636.7,2635.9,2.79080262]
[1749030319398,1.81176932,2636.7,2636.2,10.0]
[1749030319551,0.208,2636.6,2636.2,10.0]
[1749030323359,0.208,2636.6,2636.4,8.0]
[1749030323599,1.5462,2636.7,2636.5,18.0]
[1749030323761,1.5462,2636.7,2636.6,14.7657]
[1749030324096,1.7542,2636.7,2636.6,14.7657]
[1749030325014,0.208,2636.7,2636.6,14.7657]
[1749030328229,0.982,2636.8,2636.7,18.0]
[1749030328386,1.189,2636.8,2636.7,20.79080262]
[1749030329522,1.189,2636.8,2636.7,18.0]
[1749030329720,1.189,2636.8,2636.7,9.92294784]
[1749030329890,1.189,2636.8,2636.6,9.92294784]
[1749030330084,1.189,2636.8,2636.7,2.79080262]
[1749030330285,1.189,2636.8,2636.7,12.71375046]
[1749030330486,1.189,2636.8,2636.4,9.92294784]
[1749030330686,1.189,2636.8,2636.3,9.20677974]
[1749030330687,1.189,2636.8,2636.7,9.92294784]
[1749030332899,1.189,2636.8,2636.7,17.92294784]
[1749030340926,0.982,2636.8,2636.7,17.92294784]
[1749030341127,1.189,2636.8,2636.7,17.92294784]
[1749030343868,1.189,2636.8,2636.7,20.71375046]
[1749030344731,0.62709031,2636.8,2636.7,20.71375046]
[1749030345052,0.83409031,2636.8,2636.7,20.71375046]
[1749030345765,1.188,2636.8,2636.7,22.06648541]
[1749030348269,0.981,2636.8,2636.7,23.58065593]
[1749030348437,1.188,2636.8,2636.7,23.58065593]
[1749030348633,0.299258,2636.8,2636.7,23.58065593]
[1749030349283,0.299258,2636.8,2636.7,27.68987677]
[1749030349648,0.092258,2636.8,2636.7,27.68987677]
[1749030349963,0.092258,2636.8,2636.7,26.61100798]
[1749030349964,0.299258,2636.8,2636.7,26.61100798]
[1749030350563,0.02,2637.9,2636.9,0.55]
[1749030350769,1.188,2637.8,2637.2,9.92294784]
[1749030351086,1.188,2637.8,2637.7,8.0]
[1749030351388,1.188,2637.8,2637.7,17.92294784]
[1749030351946,1.188,2637.8,2637.7,20.71375046]
[1749030353798,1.188,2637.8,2637.7,23.50455308]
[1749030354165,1.188,2637.8,2637.7,20.71375046]
[1749030354765,1.188,2637.8,2637.7,23.50455308]
[1749030355594,1.4475,2638.7,2637.7,24.05455308]
[1749030355795,0.207,2637.8,2637.7,21.26375046]
[1749030356152,0.981,2638.4,2637.8,0.55]
[1749030356464,0.207,2638.3,2638.2,8.0]
[1749030356669,0.207,2638.3,2638.2,17.92294784]
[1749030356865,0.02,2638.9,2638.2,20.71375046]
[1749030357204,0.02,2638.9,2638.8,20.71375046]
[1749030357409,0.227,2638.9,2638.8,20.71375046]
[1749030358298,1.7316,2638.9,2638.8,17.92294784]
[1749030358493,1.7316,2638.9,2638.8,14.250007]
[1749030359627,0.227,2638.9,2638.8,14.250007]
[1749030361576,0.02,2638.9,2638.8,14.250007]
[1749030361777,0.227,2638.9,2638.8,14.250007]
[1749030364184,0.02,2638.9,2638.8,17.59080962]
[1749030364390,0.227,2638.9,2638.8,17.59080962]
[1749030364584,0.04389231,2638.9,2638.8,17.59080962]
[1749030364922,1.5078,2639.7,2638.8,17.59080962]
[1749030364923,0.02,2639.9,2639.2,10.0]
[1749030365231,0.207,2639.8,2639.7,18.0]
[1749030368748,0.02,2639.9,2639.8,8.0]
[1749030368914,0.227,2639.9,2639.8,18.0]
[1749030369492,0.227,2639.9,2639.8,20.79080262]
[1749030370849,0.227,2639.9,2639.8,18.0]
[1749030371041,1.7156,2639.9,2639.5,8.0]
[1749030371330,1.7156,2639.9,2639.6,10.0]
[1749030371836,1.7156,2639.9,2639.8,10.0]
[1749030372046,1.7156,2639.9,2639.8,18.0]
[1749030372341,0.02,2639.9,2639.8,20.79080262]
[1749030372497,0.227,2639.9,2639.8,20.79080262]
[1749030375381,0.02,2639.9,2639.8,20.79080262]
[1749030375563,0.227,2639.9,2639.8,20.79080262]
[1749030376241,0.227,2639.9,2639.8,18.0]
[1749030376439,0.227,2639.9,2639.8,20.79080262]
[1749030380901,0.227,2639.9,2639.8,11.01197888]
[1749030383277,0.227,2639.9,2639.8,15.549729]
[1749030383477,0.227,2639.9,2639.8,18.34053162]
[1749030383783,0.02,2639.9,2639.8,18.34053162]
[1749030384088,0.227,2639.9,2639.8,18.34053162]
[1749030384842,0.227,2639.9,2639.8,18.43903162]
[1749030385465,0.02,2639.9,2639.8,21.22983424]
[1749030385641,0.981,2640.2,2639.8,21.22983424]
[1749030385642,0.981,2640.2,2640.1,10.0985]
[1749030385839,1.188,2640.2,2640.1,20.88930262]
[1749030386275,0.02,2640.9,2640.3,10.0]
[1749030386481,0.02,2640.9,2640.8,2.79080262]
[1749030386680,0.227,2640.9,2640.8,20.79080262]
[1749030386841,0.227,2640.9,2640.8,18.0]
[1749030387578,0.227,2640.9,2640.8,20.79080262]
[1749030389187,0.207,2640.9,2640.8,20.79080262]
[1749030389872,0.766,2641.2,2640.8,20.79080262]
[1749030390072,0.02,2641.9,2641.3,10.0]
[1749030390272,0.207,2641.8,2641.5,10.0]
[1749030390592,0.207,2641.8,2641.7,18.0]
[1749030391762,0.207,2641.8,2640.6,0.8715]
[1749030391955,0.207,2641.8,2640.9,12.79080262]
[1749030392192,1.5075,2641.7,2641.3,10.0]
[1749030392495,1.5075,2641.7,2641.5,12.79080262]
[1749030392658,0.207,2641.6,2641.5,18.0]
[1749030395289,1.6934,2641.6,2641.5,8.0]
[1749030398965,1.6934,2641.6,2641.5,18.0]
[1749030400628,1.628,2641.8,2641.6,18.0]
[1749030400840,0.207,2641.7,2641.6,15.913021]
[1749030401442,0.207,2641.7,2641.6,8.0]
[1749030401649,0.207,2641.7,2641.3,10.0]
[1749030402146,1.5214,2641.6,2640.6,2.79080262]
[1749030402312,1.5214,2641.6,2640.7,10.0]
[1749030402714,1.5214,2641.6,2641.1,8.0]
[1749030402920,1.5214,2641.6,2641.2,10.0]
[1749030403503,1.5214,2641.6,2641.2,8.0]
[1749030403832,1.4939,2641.5,2640.7,8.0]
[1749030404022,1.4939,2641.5,2640.7,10.0]
[1749030404217,1.4939,2641.5,2640.5,10.0]
[1749030404533,1.5411,2641.3,2640.7,10.0]
[1749030404739,1.5411,2641.3,2640.6,10.0]
[1749030406139,1.5411,2641.3,2640.5,8.0]
[1749030406140,1.5411,2641.3,2640.9,8.0]
[1749030406304,1.5411,2641.3,2640.7,10.0]
[1749030406305,1.5411,2641.3,2640.7,8.0]
[1749030406638,0.207,2641.2,2641.0,8.0]
[1749030406938,1.4933,2641.1,2641.0,12.694445]
[1749030407149,1.4933,2641.1,2640.9,8.0]
[1749030407312,0.207,2641.0,2640.9,18.0]
[1749030407498,0.207,2641.0,2640.9,13.754164]
[1749030408140,0.207,2641.0,2640.9,10.727884]
[1749030408906,1.5683,2641.7,2641.0,10.0]
[1749030409104,0.207,2641.6,2641.2,10.0]
[1749030410319,1.4983,2641.5,2641.0,6.091734]
[1749030410499,1.4983,2641.5,2641.2,9.895701]
[1749030411201,0.207,2641.4,2641.2,9.326701]
[1749030411624,1.4983,2641.5,2641.2,9.326701]
[1749030411825,0.207,2641.4,2641.2,9.326701]
[1749030412106,1.4983,2641.5,2641.3,10.0]
[1749030412317,0.207,2641.4,2641.3,10.0]
[1749030412650,0.207,2641.4,2641.2,12.79080262]
[1749030412853,0.207,2641.4,2641.3,10.0]
[1749030413027,1.4983,2641.5,2641.3,10.0]
[1749030413231,0.207,2641.4,2641.3,10.0]
[1749030413865,0.207,2641.4,2641.3,5.4248]
[1749030414854,0.207,2641.4,2641.1,8.0]
[1749030415360,0.207,2641.4,2640.7,0.973]
[1749030415656,0.207,2641.4,2641.2,8.0]
[1749030416958,1.554,2641.3,2640.7,2.79080262]
[1749030417260,1.554,2641.3,2640.8,50.0]
[1749030418131,1.554,2641.3,2641.0,60.0]
[1749030418480,1.554,2641.3,2641.0,50.0]
[1749030418646,1.554,2641.3,2640.5,50.0]
[1749030418956,1.554,2641.3,2640.7,60.0]
[1749030419159,1.554,2641.3,2640.7,50.0]
[1749030419366,0.207,2641.2,2641.1,2.79080262]
[1749030419576,0.207,2641.2,2641.1,50.0]
[1749030419782,0.207,2641.2,2641.0,50.0]
[1749030420381,0.207,2641.2,2640.9,50.0]
[1749030420586,0.207,2641.2,2641.0,50.0]
[1749030421464,0.207,2641.2,2640.9,50.0]
[1749030421465,1.4997,2641.1,2640.9,50.0]
[1749030421969,1.4997,2641.1,2640.3,0.973]
[1749030421970,1.4997,2641.1,2640.3,8.0]
[1749030422168,1.4997,2641.1,2640.6,5.08187]
[1749030422330,1.4997,2641.1,2640.6,2.002899]
[1749030422533,1.4997,2641.1,2640.5,10.0]
[1749030422870,1.4997,2641.1,2640.6,8.0]
[1749030423332,1.4997,2641.1,2640.6,9.109879]
[1749030423532,1.4997,2641.1,2640.6,3.554879]
[1749030423789,1.4997,2641.1,2640.5,8.0]
[1749030424082,1.4997,2641.1,2640.2,8.0]
[1749030424287,1.4997,2641.1,2640.3,9.96355]
[1749030424589,1.4997,2641.1,2640.1,26.869734]
[1749030424807,1.4997,2641.1,2640.3,5.494392]
[1749030425101,1.5604,2640.9,2640.0,11.947875]
[1749030425249,0.21104,2640.8,2640.0,11.947875]
[1749030425450,1.5604,2640.9,2640.0,11.947875]
[1749030425659,1.5604,2640.9,2640.1,20.092758]
[1749030425859,1.5604,2640.9,2640.2,2.227643]
[1749030426091,0.207,2640.8,2640.4,8.0]
[1749030426291,1.6464,2640.7,2640.5,11.91602959]
[1749030426496,0.207,2640.7,2640.6,24.376983]
[1749030427255,0.207,2640.7,2640.6,17.3909]
[1749030427451,0.207,2640.7,2640.6,12.4569]
[1749030427664,0.207,2640.7,2640.4,25.962372]
[1749030428001,0.207,2640.7,2640.4,15.962372]
[1749030428668,1.4987,2641.7,2640.8,24.067539]
[1749030428865,1.7057,2641.6,2640.9,8.0]
[1749030429072,1.7057,2641.6,2641.0,19.395799]
[1749030429668,1.7057,2641.6,2641.0,17.828364]
[1749030429871,0.207,2641.5,2641.0,11.646594]
[1749030430283,1.4987,2641.6,2641.0,11.646594]
[1749030430522,0.207,2641.4,2641.0,11.646594]
[1749030431184,0.207,2641.4,2641.1,8.0]
[1749030431386,1.5793,2641.3,2640.8,8.0]
[1749030431632,1.5793,2641.3,2640.2,36.660148]
[1749030431766,1.5793,2641.3,2640.5,8.0]
[1749030432121,1.5793,2641.3,2640.6,9.352234]
[1749030432614,1.5793,2641.3,2640.1,6.226635]
[1749030432615,0.55,2641.2,2640.2,8.0]
[1749030432813,1.4973,2641.1,2640.3,10.191386]
[1749030433018,1.4973,2641.1,2640.5,12.238605]
[1749030433713,1.4973,2641.1,2640.5,6.335282]
[1749030433874,1.4973,2641.1,2640.4,8.0]
[1749030433875,1.4973,2641.1,2640.2,8.0]
[1749030434078,1.4973,2641.1,2640.1,6.226635]
[1749030434079,0.207,2641.0,2640.5,2.556164]
[1749030434398,0.207,2641.0,2640.2,8.0]
[1749030434590,1.6379,2640.9,2640.5,10.944905]
[1749030434911,1.6379,2640.9,2640.7,8.0]
[1749030435111,1.6379,2640.9,2640.3,10.1209]
[1749030435280,1.6379,2640.9,2640.5,3.711702]
[1749030435483,1.6379,2640.9,2640.2,8.0]
[1749030436268,1.6379,2640.9,2640.4,10.0]
[1749030436466,1.6379,2640.9,2640.3,2.501694]
[1749030436467,1.6379,2640.9,2640.3,5.550245]
[1749030436807,1.6379,2640.9,2640.0,8.0]
[1749030437010,1.6379,2640.9,2640.3,5.539212]
[1749030437214,0.207,2640.8,2640.5,8.0]
[1749030437424,0.207,2640.8,2640.6,7.820379]
[1749030437615,0.207,2640.8,2640.7,10.0]
[1749030437799,0.207,2640.8,2640.6,8.393677]
[1749030438898,1.6368,2641.1,2640.6,8.393677]
[1749030439120,1.6368,2641.1,2640.6,15.348079]
[1749030439121,0.207,2640.7,2640.6,15.348079]
[1749030439321,0.207,2640.7,2640.6,12.734196]
[1749030439606,1.6368,2641.1,2640.8,8.0]
[1749030439784,0.207,2641.0,2640.3,8.9854]
[1749030439984,0.207,2641.0,2640.6,29.198539]
[1749030440179,0.207,2641.0,2640.6,25.055792]
[1749030440406,0.207,2641.0,2640.6,17.724987]
[1749030440621,0.207,2641.0,2640.6,9.22769498]
[1749030440824,0.207,2641.0,2640.4,0.46901059]
[1749030441117,0.207,2641.0,2640.8,8.0]
[1749030441324,1.6368,2641.1,2640.7,25.239076]
[1749030441526,0.207,2641.0,2640.9,26.823096]
[1749030442183,1.641,2641.3,2640.9,26.823096]
[1749030442384,0.207,2641.0,2640.9,38.0]
[1749030442624,0.207,2641.0,2640.9,36.85569]
[1749030442797,0.207,2641.0,2640.9,33.924363]
[1749030442979,0.207,2641.0,2640.9,25.517203]
[1749030443179,0.207,2641.0,2640.9,19.26697]
[1749030444830,0.207,2641.0,2640.9,17.969093]
[1749030445604,0.207,2641.0,2640.9,16.456746]
[1749030447261,1.7452,2641.0,2640.9,11.955739]
[1749030447729,1.7452,2641.0,2640.9,8.0]
[1749030448459,0.207,2641.0,2640.9,8.0]
[1749030448607,0.207,2641.0,2640.9,10.072967]
[1749030452247,0.207,2641.0,2640.9,8.0]
[1749030455752,0.207,2641.0,2640.7,2.77159142]
[1749030456217,1.5025,2641.3,2640.7,2.77159142]
[1749030456416,0.207,2640.9,2640.7,2.77159142]
[1749030456848,1.5025,2641.3,2640.7,2.77159142]
[1749030457155,0.207,2641.2,2640.6,2.77159142]
[1749030457524,0.207,2641.1,2640.6,2.77159142]
[1749030457961,0.207,2641.1,2640.8,2.77159142]
[1749030458461,1.5025,2641.3,2640.8,2.77159142]
[1749030458662,0.207,2641.0,2640.8,2.77159142]
[1749030458841,0.207,2640.9,2640.8,2.77159142]
[1749030459947,0.207,2640.9,2640.6,2.77159142]
[1749030460979,0.207,2640.9,2640.5,10.0]
[1749030460980,0.207,2640.9,2640.8,2.77159142]
[1749030462240,0.207,2640.9,2640.8,8.0]
[1749030462441,1.6999,2640.9,2640.8,8.0]
[1749030462849,1.6999,2640.9,2640.3,2.77159142]
[1749030463196,1.6999,2640.9,2640.4,8.0]
[1749030463494,1.6999,2640.9,2640.4,10.0]
[1749030463644,0.207,2640.8,2640.5,10.77159142]
[1749030463844,1.4929,2640.9,2640.5,10.77159142]
[1749030464043,0.207,2640.8,2640.5,10.77159142]
[1749030467373,0.207,2640.8,2640.4,8.0]
[1749030469656,0.207,2640.8,2640.5,2.77159142]
[1749030471681,0.207,2640.8,2640.4,8.0]
[1749030473494,0.207,2640.8,2640.5,8.0]
[1749030474383,0.98,2640.7,2640.5,8.0]
[1749030478065,0.207,2640.6,2640.5,8.0]
[1749030478467,0.207,2640.6,2640.3,2.77159142]
[1749030478697,1.5624,2640.5,2640.4,8.0]
[1749030480499,1.83734,2640.5,2640.2,8.0]
[1749030482377,1.5624,2640.5,2640.4,8.0]
[1749030484409,1.5624,2640.5,2639.4,1.88005327]
[1749030484410,1.5624,2640.5,2640.2,8.0]
[1749030484608,1.5624,2640.5,2640.4,8.0]
[1749030485106,1.5624,2640.5,2640.4,14.9258]
[1749030485474,0.207,2640.6,2640.4,14.9258]
[1749030485673,0.207,2640.6,2640.5,2.77159142]
[1749030486706,0.48826,2640.6,2640.5,2.77159142]
[1749030487016,0.48826,2640.6,2640.4,8.0]
[1749030487323,0.207,2640.5,2640.4,8.0]
[1749030492431,1.187,2640.5,2640.4,8.0]
[1749030495334,2.4688,2640.5,2640.4,8.0]
[1749030495537,1.4888,2640.4,2639.7,2.77159142]
[1749030495842,1.4888,2640.2,2639.7,1.77159142]
[1749030496202,1.4888,2640.2,2640.1,2.77159142]
[1749030496402,1.6958,2640.2,2640.1,2.77159142]
[1749030496705,1.4888,2640.2,2640.1,2.77159142]
[1749030497037,1.6958,2640.2,2640.1,2.77159142]
[1749030497739,1.4888,2640.2,2640.1,2.77159142]
[1749030497939,1.6958,2640.2,2640.1,2.77159142]
[1749030500616,1.6958,2640.2,2639.9,2.77159142]
[1749030501740,1.6958,2640.2,2639.8,8.0]
[1749030502342,1.6958,2640.2,2639.5,8.0]
[1749030502554,1.5755,2640.0,2639.5,8.0]
[1749030503050,1.5755,2640.0,2639.4,1.66352821]
[1749030504016,1.5755,2640.0,2639.7,10.0]
[1749030504214,1.5755,2640.0,2639.6,2.77159142]
[1749030505040,0.207,2639.9,2639.6,2.77159142]
[1749030505941,1.5424,2639.8,2639.4,2.77159142]
[1749030506304,0.207,2639.7,2639.4,2.77159142]
[1749030506558,0.207,2639.6,2639.4,2.77159142]
[1749030506928,1.5424,2639.8,2639.4,2.77159142]
[1749030507258,1.5424,2639.8,2639.2,8.0]
[1749030507462,0.207,2639.7,2639.6,2.77159142]
[1749030507776,0.207,2639.7,2639.6,26.89038042]
[1749030507943,0.207,2639.7,2639.6,22.67367642]
[1749030508960,0.207,2639.7,2639.6,22.17367642]
[1749030509676,0.207,2639.7,2639.6,20.80207442]
[1749030510534,1.5655,2640.0,2639.6,20.80207442]
[1749030510858,0.207,2639.9,2639.8,2.77159142]
[1749030511268,1.5655,2640.0,2639.8,2.77159142]
[1749030511423,0.207,2639.9,2639.8,2.77159142]
[1749030513766,1.4976,2639.8,2639.6,2.77159142]
[1749030514266,1.4976,2639.8,2639.5,8.0]
[1749030515664,1.5819,2639.6,2638.9,2.77159142]
[1749030515850,0.21319,2639.5,2639.0,20.765741]
[1749030516051,1.5819,2639.4,2639.2,20.305696]
[1749030516472,0.207,2639.3,2639.2,20.305696]
[1749030520695,0.55,2639.8,2639.2,20.305696]
[1749030520869,0.207,2639.3,2639.2,20.305696]
[1749030521063,0.207,2639.3,2639.2,23.07728742]
[1749030523399,0.207,2639.3,2639.2,20.305696]
[1749030523686,1.6966,2639.3,2639.2,20.305696]
[1749030523904,1.6966,2639.3,2638.4,0.59122485]
[1749030524093,1.6966,2639.3,2638.8,8.0]
[1749030524299,1.6966,2639.3,2638.9,2.77159142]
[1749030524798,1.6966,2639.3,2639.0,3.743269]
[1749030525192,0.207,2639.2,2638.9,2.77159142]
[1749030525373,0.207,2639.1,2638.9,2.77159142]
[1749030527267,0.207,2639.1,2638.7,10.77159142]
[1749030527473,1.6006,2639.0,2638.7,2.77159142]
[1749030528809,1.6006,2639.0,2638.5,6.232544]
[1749030528995,1.6006,2639.0,2638.6,4.354223]
[1749030529502,1.6006,2639.0,2638.5,4.51078]
[1749030529698,1.6006,2639.0,2638.6,10.0]
[1749030529998,1.6006,2639.0,2638.4,2.77159142]
[1749030532921,6.2706,2639.0,2638.5,2.603281]
[1749030533138,6.2706,2639.0,2638.6,2.77159142]
[1749030533139,0.64776,2638.9,2638.6,2.77159142]
[1749030535317,1.5786,2638.8,2638.6,2.77159142]
[1749030539215,1.5786,2638.8,2638.5,2.77159142]
[1749030539733,1.5786,2638.8,2638.7,2.77159142]
[1749030539891,0.207,2638.8,2638.7,2.77159142]
[1749030540387,4.67,2639.0,2638.7,2.77159142]
[1749030540589,0.207,2638.8,2638.2,30.0]
[1749030541209,0.207,2638.7,2638.2,30.0]
[1749030541614,0.207,2638.6,2638.2,30.0]
[1749030541829,0.207,2638.6,2638.5,40.77159142]
[1749030542229,0.01649679,2638.6,2638.5,40.77159142]
[1749030542829,1.6009,2639.4,2638.7,30.0]
[1749030543035,0.207,2639.3,2639.0,40.0]